fUST/lending_fUST_20250613
["ID","MTS","AMOUNT","RATE_DAILY","PERIOD"]
[365641339,1749816648695,-151.0,0.00023,7]
[365641342,1749816648719,-151.0,0.00023,7]
[365641344,1749816648733,-151.0,0.00023,7]
[365641347,1749816648749,-1069.92,0.00023005,2]
[365641350,1749816648768,-460.0,0.00023013,4]
[365641352,1749816648782,-460.0,0.00023013,2]
[365641355,1749816648800,-460.0,0.00023013,4]
[365641357,1749816648813,-500.0,0.00023013,2]
[365641360,1749816648828,-460.0,0.00023013,4]
[365641362,1749816648842,-460.0,0.00023013,4]
[365641365,1749816648858,-460.0,0.00023013,4]
[365641367,1749816648872,-1771.57,0.00023013,4]
[365641370,1749816648886,-460.0,0.00023013,4]
[365641372,1749816648900,-460.0,0.00023013,4]
[365641375,1749816648915,-460.0,0.00023013,4]
[365641377,1749816648930,-320.0,0.00023013,4]
[365641380,1749816648945,-460.0,0.00023013,4]
[365641382,1749816648960,-187.18986344,0.00023013,4]
[365641385,1749816648974,-460.0,0.00023013,4]
[365641388,1749816648990,-1212.34,0.00023013,4]
[365641390,1749816649006,-288.46,0.00023013,4]
[365641393,1749816649020,-1498.25,0.00023013,4]
[365641395,1749816649035,-320.0,0.00023013,4]
[365641398,1749816649051,-574.01,0.00023013,4]
[365641400,1749816649062,-1531.91,0.00023013,4]
[365641402,1749816649073,-460.0,0.00023013,4]
[365641404,1749816649082,-1069.92,0.00023013,2]
[365641406,1749816649092,-460.0,0.00023013,4]
[365641408,1749816649102,-320.0,0.00023013,4]
[365641410,1749816649112,-460.0,0.00023013,4]
[365641412,1749816649123,-320.0,0.00023013,4]
[365641414,1749816649133,-320.0,0.00023013,4]
[365641416,1749816649143,-460.0,0.00023013,4]
[365641418,1749816649153,-320.0,0.00023013,4]
[365641421,1749816649164,-596.19,0.00023013,4]
[365641423,1749816649174,-460.0,0.00023013,4]
[365641425,1749816649183,-585.41,0.00023013,4]
[365641427,1749816649194,-460.0,0.00023013,4]
[365641429,1749816649203,-460.0,0.00023013,4]
[365641431,1749816649214,-4164.15,0.00023013,4]
[365641433,1749816649225,-460.0,0.00023013,4]
[365641435,1749816649234,-796.34,0.00023013,4]
[365641454,1749816649243,-1005.96,0.00023013,4]
[365641457,1749816649434,-320.0,0.00023013,4]
[365641459,1749816649445,-932.64,0.00023013,4]
[365641461,1749816649455,-1259.77,0.00023013,4]
[365641463,1749816649465,-460.0,0.00023013,4]
[365641465,1749816649475,-1986.29,0.00023013,4]
[365641467,1749816649485,-918.57,0.00023013,4]
[365641469,1749816649494,-460.0,0.00023013,4]
[365641471,1749816649504,-320.0,0.00023013,4]
[365641473,1749816649513,-460.0,0.00023013,4]
[365641475,1749816649523,-1111.62,0.00023013,4]
[365641477,1749816649533,-4335.09,0.00023038,2]
[365641479,1749816649543,-600.0,0.00023046,2]
[365641481,1749816649553,-600.0,0.00023051,2]
[365641483,1749816649563,-365.2062734,0.00023068,2]
[365641485,1749816649573,-365.2062734,0.00023068,2]
[365641487,1749816649583,-365.2062734,0.00023068,2]
[365641489,1749816649592,-365.2062734,0.00023068,2]
[365641491,1749816649601,-365.2062734,0.00023068,2]
[365641493,1749816649610,-364.0267413,0.00023068,2]
[365641495,1749816649619,-600.0,0.00023079,2]
[365641497,1749816649629,-1000.0,0.00023081,2]
[365641499,1749816649639,-600.0,0.00023089,2]
[365641501,1749816649648,-600.0,0.00023095,2]
[365641503,1749816649658,-255.0,0.0002311,2]
[365641505,1749816649668,-255.0,0.00023115,2]
[365641507,1749816649678,-255.0,0.0002312,2]
[365641509,1749816649687,-255.0,0.00023125,2]
[365641511,1749816649697,-600.0,0.00023127,2]
[365641513,1749816649707,-255.0,0.0002313,2]
[365641515,1749816649717,-255.0,0.00023135,2]
[365641517,1749816649730,-394.2064641,0.0002314,2]
[365641519,1749816649739,-1760.29086515,0.00023141,8]
[365641521,1749816649748,-444.01059908,0.00023142,2]
[365641523,1749816649759,-500.0,0.00023156,2]
[365641525,1749816649768,-1069.92,0.00023199,2]
[365641527,1749816649777,-1000.0,0.000232,2]
[365641529,1749816649787,-1500.0,0.00023236,2]
[365641531,1749816649797,-600.0,0.00023246,2]
[365641533,1749816649807,-700.0,0.00023248,2]
[365641535,1749816649817,-600.0,0.00023265,2]
[365641537,1749816649829,-600.0,0.00023268,2]
[365641539,1749816649838,-1069.92,0.00023286,2]
[365641541,1749816649847,-1069.92,0.00023286,2]
[365641543,1749816649856,-1069.92,0.00023286,2]
[365641545,1749816649866,-1069.92,0.00023286,2]
[365641547,1749816649875,-1070.0944999,0.00023286,2]
[365641549,1749816649895,-565.29,0.00023287,4]
[365641551,1749816649914,-460.0,0.00023287,2]
[365641553,1749816649923,-460.0,0.00023287,4]
[365641555,1749816649933,-460.0,0.00023287,4]
[365641557,1749816649943,-460.0,0.00023287,4]
[365641559,1749816649957,-460.0,0.00023287,4]
[365641561,1749816649966,-1771.57,0.00023287,4]
[365641563,1749816649976,-439.34966653,0.00023287,4]
[365641565,1749816649986,-460.0,0.00023287,4]
[365641567,1749816649995,-460.0,0.00023287,4]
[365641569,1749816650004,-460.0,0.00023287,4]
[365641571,1749816650014,-320.0,0.00023287,4]
[365641573,1749816650022,-151.0,0.00023287,7]
[365641575,1749816650032,-1212.34,0.00023287,4]
[365641577,1749816650041,-1498.25,0.00023287,4]
[365641579,1749816650052,-574.01,0.00023287,4]
[365641581,1749816650069,-151.0,0.00023287,7]
[365641583,1749816650081,-1531.91,0.00023287,4]
[365641585,1749816650092,-272.05915223,0.00023287,4]
[365641587,1749816650102,-460.0,0.00023287,4]
[365641589,1749816650112,-460.0,0.00023287,4]
[365641591,1749816650122,-151.0,0.00023287,7]
[365641593,1749816650131,-460.0,0.00023287,4]
[365641595,1749816650140,-596.19,0.00023287,4]
[365641597,1749816650148,-151.0,0.00023287,7]
[365641599,1749816650158,-460.0,0.00023287,4]
[365641601,1749816650166,-585.41,0.00023287,4]
[365641603,1749816650175,-169.70097562,0.00023287,4]
[365641605,1749816650183,-320.0,0.00023287,4]
[365641607,1749816650194,-4164.15,0.00023287,4]
[365641609,1749816650203,-179.60718448,0.00023287,4]
[365641611,1749816650213,-796.34,0.00023287,4]
[365641613,1749816650222,-1005.96,0.00023287,4]
[365641616,1749816650232,-932.64,0.00023287,4]
[365641618,1749816650242,-1259.77,0.00023287,4]
[365641619,1749816650251,-260.0,0.00023287,4]
[365641622,1749816650261,-1986.29,0.00023287,4]
[365641624,1749816650270,-918.57,0.00023287,4]
[365641626,1749816650279,-460.0,0.00023287,4]
[365641627,1749816650288,-3475.936588,0.00023287,2]
[365641630,1749816650298,-3475.936588,0.00023287,2]
[365641632,1749816650307,-460.0,0.00023287,4]
[365641634,1749816650317,-1111.62,0.00023287,4]
[365641636,1749816650326,-1144.0,0.00023289,2]
[365641638,1749816650335,-151.0,0.0002329,7]
[365641640,1749816650345,-172.437311,0.0002329,7]
[365641642,1749816650354,-151.0,0.00023297,2]
[365641644,1749816650364,-700.0,0.00023298,2]
[365641646,1749816650373,-700.0,0.00023299,2]
[365641648,1749816650383,-151.0,0.000233,7]
[365641650,1749816650392,-151.0,0.000233,7]
[365641652,1749816650403,-334.555832,0.000233,7]
[365641654,1749816650414,-334.555832,0.000233,7]
[365641656,1749816650423,-151.0,0.000233,7]
[365641658,1749816650433,-1629.032515,0.00023304,3]
[365641660,1749816650443,-700.0,0.00023313,2]
[365641662,1749816650452,-1760.29086515,0.00023314,9]
[365641664,1749816650463,-1144.0,0.00023316,2]
[365641666,1749816650475,-1000.0,0.00023318,2]
[365641668,1749816650486,-1000.0,0.00023321,2]
[365641670,1749816650495,-500.0,0.00023323,2]
[365641671,1749816650504,-600.0,0.00023328,2]
[365641673,1749816650514,-700.0,0.00023333,2]
[365641676,1749816650525,-172.1078423,0.00023342,2]
[365641677,1749816650534,-160.7944978,0.00023342,2]
[365641680,1749816650544,-176.81809,0.00023342,2]
[365641681,1749816650554,-158.5050251,0.00023342,2]
[365641683,1749816650563,-1146.9306008,0.00023342,2]
[365641686,1749816650574,-317.4403672,0.00023342,2]
[365641688,1749816650584,-153.0,0.00023342,2]
[365641690,1749816650594,-955.9333123,0.00023342,2]
[365641692,1749816650603,-357.1606247,0.00023342,2]
[365641694,1749816650613,-153.0,0.00023342,2]
[365641696,1749816650623,-153.0,0.00023342,2]
[365641698,1749816650633,-153.0,0.00023342,2]
[365641700,1749816650642,-153.0,0.00023342,2]
[365641702,1749816650654,-153.0,0.00023342,2]
[365641704,1749816650663,-153.0,0.00023342,2]
[365641706,1749816650673,-153.0,0.00023342,2]
[365641708,1749816650682,-153.0,0.00023342,2]
[365641710,1749816650692,-153.0,0.00023342,2]
[365641712,1749816650701,-1144.0,0.00023343,2]
[365641714,1749816650711,-200.5,0.0002335,3]
[365641716,1749816650724,-317.0,0.0002335,3]
[365641718,1749816650734,-317.0,0.0002335,3]
[365641720,1749816650743,-317.0,0.0002335,3]
[365641722,1749816650753,-317.0,0.0002335,3]
[365641724,1749816650763,-329.85445623,0.0002335,3]
[365641725,1749816650772,-700.0,0.00023399,2]
[365641727,1749816650782,-700.0,0.00023416,2]
[365641729,1749816650793,-444.01059908,0.00023419,2]
[365641731,1749816650803,-600.0,0.00023444,2]
[365641733,1749816650812,-500.0,0.00023449,2]
[365641735,1749816650821,-700.0,0.00023461,2]
[365641737,1749816650831,-1760.29086515,0.00023486,9]
[365641739,1749816650841,-600.0,0.00023493,2]
[365641741,1749816650850,-700.0,0.00023507,2]
[365641743,1749816650860,-500.53643659,0.00023521,2]
[365641745,1749816650871,-1000.0,0.00023521,2]
[365641747,1749816650882,-810.26841365,0.00023521,2]
[365641749,1749816650892,-1000.0,0.00023521,2]
[365641751,1749816650902,-1000.0,0.00023521,2]
[365641753,1749816650911,-1000.0,0.00023521,2]
[365641755,1749816650921,-481.13826857,0.00023521,2]
[365641757,1749816650930,-1000.0,0.00023521,2]
[365641759,1749816650940,-1000.0,0.00023521,2]
[365641761,1749816650950,-1000.0,0.00023521,2]
[365641762,1749816650959,-1200.0,0.00023521,2]
[365641763,1749816650968,-1129.63536797,0.00023521,2]
[365641764,1749816650977,-984.08527767,0.00023521,2]
[365641765,1749816650985,-507.7353454,0.00023521,2]
[365641766,1749816650994,-500.0,0.00023521,2]
[365641767,1749816651004,-1000.0,0.00023521,2]
[365641768,1749816651013,-944.57198574,0.00023521,2]
[365641769,1749816651022,-587.0,0.00023552,2]
[365641770,1749816651031,-151.0,0.00023561,7]
[365641771,1749816651040,-172.437311,0.00023561,7]
[365641772,1749816651049,-460.0,0.00023561,2]
[365641773,1749816651058,-460.0,0.00023561,4]
[365641774,1749816651067,-521.14646725,0.00023561,4]
[365641775,1749816651077,-340.0,0.00023561,4]
[365641776,1749816651086,-460.0,0.00023561,4]
[365641778,1749816651095,-1771.57,0.00023561,4]
[365641780,1749816651104,-500.0,0.00023561,4]
[365641782,1749816651114,-460.0,0.00023561,4]
[365641784,1749816651123,-454.34,0.00023561,4]
[365641786,1749816651133,-1212.34,0.00023561,4]
[365641788,1749816651143,-1498.25,0.00023561,4]
[365641790,1749816651153,-574.01,0.00023561,4]
[365641792,1749816651163,-1531.91,0.00023561,4]
[365641794,1749816651172,-460.0,0.00023561,4]
[365641796,1749816651182,-320.0,0.00023561,4]
[365641798,1749816651191,-260.0,0.00023561,4]
[365641800,1749816651200,-596.19,0.00023561,4]
[365641802,1749816651210,-460.0,0.00023561,4]
[365641804,1749816651219,-315.331378,0.00023561,7]
[365641806,1749816651228,-585.41,0.00023561,4]
[365641808,1749816651238,-315.331378,0.00023561,7]
[365641810,1749816651248,-4164.15,0.00023561,4]
[365641812,1749816651257,-796.34,0.00023561,4]
[365641814,1749816651267,-1005.96,0.00023561,4]
[365641816,1749816651276,-932.64,0.00023561,4]
[365641818,1749816651286,-1259.77,0.00023561,4]
[365641820,1749816651296,-1986.29,0.00023561,4]
[365641822,1749816651306,-918.57,0.00023561,4]
[365641824,1749816651315,-320.0,0.00023561,4]
[365641826,1749816651325,-460.0,0.00023561,4]
[365641828,1749816651334,-1111.62,0.00023561,4]
[365641830,1749816651344,-7620.39078176,0.00023562,2]
[365641832,1749816651353,-800.0,0.00023575,2]
[365641834,1749816651363,-500.0,0.00023577,2]
[365641836,1749816651373,-1558.89952756,0.00023595,2]
[365641838,1749816651382,-726.07155611,0.00023652,2]
[365641839,1749816651391,-800.0,0.00023655,2]
[365641841,1749816651401,-1760.29086515,0.00023659,9]
[365641843,1749816651411,-587.0,0.00023666,2]
[365641845,1749816651420,-500.0,0.00023674,2]
[365641848,1749816651430,-3000.0,0.000237,2]
[365641850,1749816651439,-1000.0,0.000237,2]
[365641852,1749816651449,-151.0,0.000237,7]
[365641853,1749816651458,-7264.14274133,0.000237,2]
[365641855,1749816651468,-155.9058,0.000237,7]
[365641857,1749816651477,-151.0,0.000237,7]
[365641859,1749816651486,-790.62338124,0.00023706,2]
[365641861,1749816651496,-3000.0,0.0002371,2]
[365641864,1749816651506,-800.0,0.00023716,2]
[365641865,1749816651515,-800.0,0.00023718,2]
[365641868,1749816651525,-3000.0,0.0002372,2]
[365641870,1749816651534,-700.0,0.00023723,2]
[365641872,1749816651544,-3000.0,0.0002373,2]
[365641874,1749816651554,-600.0,0.0002373,2]
[365641875,1749816651564,-1144.0,0.0002373,2]
[365641877,1749816651573,-800.0,0.00023731,2]
[365641879,1749816651583,-3000.0,0.0002374,2]
[365641881,1749816651593,-700.0,0.00023748,2]
[365641883,1749816651602,-3000.0,0.0002375,2]
[365641886,1749816651612,-151.0,0.0002375,7]
[365641888,1749816651622,-3000.0,0.0002376,2]
[365641889,1749816651632,-3000.0,0.0002377,2]
[365641892,1749816651642,-500.0,0.0002377,2]
[365641894,1749816651653,-151.0,0.0002377,7]
[365641896,1749816651663,-151.0,0.0002377,7]
[365641898,1749816651672,-153.057035,0.0002377,7]
[365641900,1749816651682,-500.0,0.00023773,2]
[365641902,1749816651692,-500.0,0.00023773,2]
[365641904,1749816651701,-500.76269463,0.00023773,2]
[365641906,1749816651711,-500.0,0.00023773,2]
[365641907,1749816651723,-500.0,0.00023773,2]
[365641909,1749816651733,-500.0,0.00023773,2]
[365641912,1749816651742,-501.95591441,0.00023773,2]
[365641913,1749816651751,-500.0,0.00023773,2]
[365641915,1749816651761,-502.18762208,0.00023773,2]
[365641917,1749816651771,-500.94100168,0.00023773,2]
[365641919,1749816651780,-500.0,0.00023773,2]
[365641921,1749816651790,-500.0,0.00023773,2]
[365641923,1749816651801,-502.36320382,0.00023773,2]
[365641925,1749816651811,-260.27069177,0.00023773,2]
[365641927,1749816651821,-258.67307002,0.00023773,2]
[365641929,1749816651830,-533.42274231,0.00023773,2]
[365641931,1749816651839,-263.08203782,0.00023773,2]
[365641933,1749816651849,-258.67307002,0.00023773,2]
[365641935,1749816651859,-258.67572705,0.00023773,2]
[365641945,1749816651868,-500.0,0.00023773,2]
[365641948,1749816651967,-151.0,0.00023773,7]
[365641950,1749816651976,-151.0,0.00023773,7]
[365641952,1749816651986,-334.555832,0.00023773,7]
[365641954,1749816651995,-334.555832,0.00023773,7]
[365641956,1749816652004,-151.0,0.00023773,7]
[365641958,1749816652013,-151.0,0.00023773,7]
[365641960,1749816652022,-151.0,0.00023773,7]
[365641962,1749816652030,-392.031106,0.00023773,7]
[365641964,1749816652039,-392.031106,0.00023773,7]
[365641966,1749816652047,-460.0,0.00023779,4]
[365641968,1749816652057,-460.0,0.00023779,4]
[365641970,1749816652066,-360724.12083265,0.0002378,5]
[365641972,1749816652075,-151.0,0.0002378,7]
[365641974,1749816652085,-42838.54037726,0.0002378,5]
[365641976,1749816652094,-151.0,0.0002378,7]
[365641978,1749816652104,-151.0,0.0002378,7]
[365641980,1749816652114,-151.0,0.0002378,7]
[365641982,1749816652123,-151.0,0.0002378,7]
[365641984,1749816652133,-151.0,0.0002378,7]
[365641986,1749816652142,-182.202556,0.0002378,7]
[365641988,1749816652152,-185.631619,0.0002378,7]
[365641990,1749816652161,-185.631619,0.0002378,7]
[365641992,1749816652171,-185.631619,0.0002378,7]
[365641994,1749816652180,-185.631619,0.0002378,7]
[365641996,1749816652189,-151.0,0.0002378,7]
[365641998,1749816652198,-151.0,0.0002378,7]
[365642000,1749816652208,-151.0,0.0002378,7]
[365642002,1749816652217,-151.0,0.0002378,7]
[365642004,1749816652226,-151.0,0.0002378,7]
[365642006,1749816652235,-151.0,0.0002378,7]
[365642008,1749816652244,-151.0,0.0002378,7]
[365642010,1749816652253,-151.0,0.0002378,7]
[365642012,1749816652265,-151.0,0.0002378,7]
[365642014,1749816652275,-151.0,0.0002378,7]
[365642016,1749816652284,-151.0,0.0002378,7]
[365642018,1749816652294,-151.0,0.0002378,7]
[365642020,1749816652303,-270.184217,0.0002378,7]
[365642022,1749816652312,-151.0,0.0002378,7]
[365642024,1749816652322,-151.0,0.0002378,7]
[365642026,1749816652332,-151.0,0.0002378,7]
[365642028,1749816652340,-151.0,0.0002378,7]
[365642030,1749816652350,-334.555832,0.0002378,7]
[365642032,1749816652359,-334.555832,0.0002378,7]
[365642034,1749816652368,-3000.0,0.0002378,2]
[365642036,1749816652378,-334.555832,0.0002378,7]
[365642038,1749816652386,-334.555832,0.0002378,7]
[365642040,1749816652396,-151.0,0.0002378,7]
[365642042,1749816652407,-151.0,0.0002378,7]
[365642044,1749816652416,-172.437311,0.0002378,7]
[365642046,1749816652426,-172.437311,0.0002378,7]
[365642048,1749816652435,-500.0,0.0002378,2]
[365642050,1749816652444,-500.0,0.0002378,2]
[365642052,1749816652453,-500.0,0.0002378,2]
[365642054,1749816652463,-500.0,0.0002378,2]
[365642056,1749816652472,-500.0,0.0002378,2]
[365642058,1749816652481,-500.0,0.0002378,2]
[365642060,1749816652490,-595.97055251,0.0002378,2]
[365642062,1749816652499,-151.0,0.0002378,7]
[365642064,1749816652509,-151.0,0.0002378,7]
[365642066,1749816652519,-151.0,0.0002378,7]
[365642068,1749816652528,-151.0,0.0002378,7]
[365642070,1749816652538,-151.0,0.0002378,7]
[365642072,1749816652547,-153.789681,0.0002378,7]
[365642074,1749816652557,-151.0,0.0002378,7]
[365642076,1749816652566,-151.0,0.0002378,7]
[365642078,1749816652575,-392.031106,0.0002378,7]
[365642080,1749816652585,-392.031106,0.0002378,7]
[365642082,1749816652594,-151.0,0.0002378,7]
[365642084,1749816652603,-151.0,0.0002378,7]
[365642086,1749816652613,-151.0,0.0002378,7]
[365642088,1749816652623,-151.0,0.0002378,7]
[365642090,1749816652632,-315.331378,0.0002378,7]
[365642092,1749816652642,-315.331378,0.0002378,7]
[365642094,1749816652652,-151.0,0.0002378,7]
[365642096,1749816652662,-151.0,0.0002378,7]
[365642098,1749816652672,-151.0,0.0002378,7]
[365642100,1749816652681,-151.0,0.0002378,7]
[365642102,1749816652691,-3475.936588,0.0002378,2]
[365642104,1749816652700,-3475.936588,0.0002378,2]
[365642106,1749816652710,-3000.0,0.0002379,2]
[365642108,1749816652722,-700.0,0.00023793,2]
[365642110,1749816652731,-501.46120462,0.00023796,9]
[365642112,1749816652741,-200.0,0.00023799,2]
[365642114,1749816652750,-280.59510017,0.00023799,2]
[365642116,1749816652760,-439958.46383955,0.000238,3]
[365642222,1749816654121,-200.03128008,0.00019942,2]
[365642224,1749816654131,-500.0,0.00021095,4]
[365642226,1749816654141,-500.0,0.00021095,4]
[365642228,1749816654153,-501.21,0.00021095,4]
[365642230,1749816654162,-67.97291802,0.00021095,4]
[365642240,1749816654247,-219.59708198,0.00021095,4]
[365642243,1749816654256,-433.84042231,0.00021095,4]
[365642245,1749816654265,-81171.85231996,0.000238,3]
[365642454,1749816656395,-23783.64067268,0.000238,3]
[365642456,1749816656408,-32092.84527869,0.000238,3]
[365642861,1749816660763,1939.04631232,0.00025015,120]
[365643967,1749816810331,273.6,0.00025015,120]
[365643970,1749816903160,1011.77234787,0.00024995,120]
[365643971,1749816903201,1687.3027967,0.00024995,120]
[365643975,1749816970339,417.617666,0.000178,30]
[365643982,1749817095261,2673.0,0.00024995,60]
[365643983,1749817155032,967.34,0.00025,60]
[365643992,1749817298978,1711.95,0.00025,60]
[365643996,1749817426634,561.25112,0.00017,4]
[365643997,1749817428212,2000.0,0.00019596,120]
[365644020,1749817564361,168.902026,0.00013699,2]
[365644054,1749817652577,1478.55577966,0.00025005,120]
[365644063,1749817664588,180.79602587,0.00025005,120]
[365644066,1749817670078,2630.17770366,0.00025005,120]
[365644074,1749817683013,200.0,0.00025005,120]
[365644075,1749817683761,2780.48503412,0.00025005,60]
[365644077,1749817694583,268.90687327,0.00025005,120]
[365644078,1749817696997,543.23823561,0.00025005,120]
[365644079,1749817700665,188.0,0.0002,120]
[365644080,1749817703041,959.57316283,0.00025005,120]
[365644081,1749817703543,913.52868956,0.00025005,120]
[365644083,1749817706799,553.8319092,0.00025005,120]
[365644089,1749817712032,842.61765283,0.00025005,120]
[365644093,1749817713315,686.5378054,0.00025005,120]
[365644098,1749817714552,240.82074905,0.00025005,120]
[365644099,1749817714736,2972.6353429,0.00025005,60]
[365644106,1749817715958,241.5193813,0.00025005,120]
[365644107,1749817716577,2454.33404138,0.00025005,120]
[365644108,1749817717035,1021.55814421,0.00025005,120]
[365644110,1749817717303,2000.0,0.00025005,120]
[365644112,1749817717743,3049.69854085,0.00025005,120]
[365644113,1749817718104,1097.78092698,0.00025005,120]
[365644115,1749817719619,-279.07771885,0.00018,2]
[365644116,1749817719651,2594.42900072,0.00025005,120]
[365644117,1749817720042,1131.04623125,0.00025005,60]
[365644118,1749817720172,2539.73192913,0.00025005,120]
[365644119,1749817720753,1089.61789946,0.00025005,120]
[365644120,1749817721151,1004.9110189,0.00025005,120]
[365644121,1749817721502,1429.45951155,0.00025005,120]
[365644122,1749817721656,463.17151393,0.00025005,120]
[365644123,1749817721751,723.36705411,0.00025005,120]
[365644124,1749817721862,3043.48146754,0.00025005,120]
[365644125,1749817722247,1559.25999448,0.00025005,120]
[365644126,1749817722542,308.40813296,0.00025005,120]
[365644128,1749817722802,425.46269708,0.00025005,120]
[365644129,1749817722889,1605.11814257,0.00025005,120]
[365644130,1749817722923,215.35279212,0.00025005,120]
[365644131,1749817722976,611.10112061,0.00025005,120]
[365644134,1749817723721,1974.20444948,0.00025005,120]
[365644135,1749817723810,604.00000031,0.0002,120]
[365644137,1749817724206,316.1562701,0.00025005,120]
[365644138,1749817724373,203.23134132,0.00025005,120]
[365644139,1749817725488,1381.04750715,0.00025005,120]
[365644140,1749817725624,669.31462086,0.00025005,120]
[365644141,1749817725805,218.09628184,0.0001536,120]
[365644143,1749817726525,210.95623421,0.00025005,120]
[365644144,1749817726594,532.78400107,0.00025005,120]
[365644148,1749817726973,1009.36870409,0.0002,120]
[365644150,1749817727464,218.82135117,0.00025005,120]
[365644155,1749817728008,207.89821366,0.00025005,120]
[365644157,1749817728434,2973.79603652,0.00025005,120]
[365644158,1749817728541,2551.4001075,0.00025005,120]
[365644159,1749817728625,2533.98816794,0.00025005,120]
[365644169,1749817802486,300.0,0.00017999,2]
[365644174,1749817809923,1200.0,0.00017999,2]
[365644206,1749817832520,-22629.0,0.00018,2]
[365644214,1749817832753,-11049.94700169,0.00018,2]
[365644215,1749817832765,-37283.61126933,0.00018,2]
[365644216,1749817832777,-160.0,0.00018,2]
[365644217,1749817832787,-240.79549263,0.00019265,2]
[365644218,1749817832798,-180.06482334,0.00019365,2]
[365644219,1749817832808,-10000.0,0.00019386,2]
[365644220,1749817832818,-292.192303,0.00019545,2]
[365644221,1749817832828,-420.0,0.00019639,2]
[365644222,1749817832838,-250.0,0.000198,30]
[365644223,1749817832847,-175.620689,0.00019819,2]
[365644224,1749817832857,-241.0512,0.00019958,2]
[365644225,1749817832867,-203.26115885,0.0002,2]
[365644226,1749817832876,-6567.94208121,0.0002,2]
[365644227,1749817832888,-1184.14512572,0.0002,2]
[365644228,1749817832897,-360.58261818,0.0002,2]
[365644229,1749817832907,-554.42837408,0.0002,2]
[365644230,1749817832917,-412.75043494,0.0002,2]
[365644231,1749817832927,-3696.73950111,0.0002,2]
[365644232,1749817832937,-1035.33,0.00020006,2]
[365644233,1749817832947,-256.3657765,0.00020111,2]
[365644234,1749817832957,-166.0,0.00020274,2]
[365644235,1749817832967,-790.50627726,0.0002041,2]
[365644236,1749817832979,-207.4,0.0002041,2]
[365644237,1749817832991,-300.0,0.00020421,2]
[365644238,1749817833003,-24900.0,0.00020422,2]
[365644239,1749817833012,-1057.9106962,0.000205,3]
[365644240,1749817833022,-1057.91069595,0.000205,3]
[365644241,1749817833032,-1057.91069595,0.000205,3]
[365644242,1749817833042,-1057.91069595,0.00020521,3]
[365644243,1749817833051,-1057.91069595,0.00020728,3]
[365644244,1749817833060,-1002.84766965,0.00020864,2]
[365644245,1749817833070,-1057.91069595,0.00020934,4]
[365644246,1749817833081,-2070.66,0.00020959,2]
[365644247,1749817833094,-500.0,0.00020964,2]
[365644248,1749817833104,-160.27156816,0.00020995,2]
[365644249,1749817833269,-157.05180825,0.00020995,2]
[365644250,1749817833279,-842.62180898,0.00021025,2]
[365644251,1749817833290,-258.93249231,0.00021073,2]
[365644252,1749817833299,-500.0,0.00021073,2]
[365644253,1749817833309,-297.17439463,0.00021073,2]
[365644254,1749817833320,-500.0,0.00021073,2]
[365644255,1749817833330,-500.0,0.00021073,2]
[365644256,1749817833339,-590.80487311,0.00021073,2]
[365644257,1749817833349,-500.0,0.00021073,2]
[365644258,1749817833358,-501.2733557,0.00021073,2]
[365644259,1749817833368,-500.0,0.00021073,2]
[365644260,1749817833378,-505.33537395,0.00021073,2]